bitfinex/quotes_BTCUSD_20230907
["timestamp","ask_amount","ask_price","bid_price","bid_amount"]
[1694122917465,0.60418984,26221.0,26220.0,2.87166184]
[1694122917700,0.37537165,26221.0,26220.0,2.87196184]
[1694122917926,0.37537165,26221.0,26220.0,2.87586184]
[1694122918178,0.37537165,26221.0,26220.0,2.87538184]
[1694122918409,0.37537165,26221.0,26220.0,2.87676184]
[1694122918632,0.37537165,26221.0,26220.0,2.88012184]
[1694122918863,0.37537165,26221.0,26220.0,2.88036184]
[1694122919104,0.37537165,26221.0,26220.0,2.88108184]
[1694122919339,0.37537165,26221.0,26220.0,2.88324184]
[1694122919629,0.37537165,26221.0,26220.0,2.88732184]
[1694122919630,0.13732439,26221.0,26220.0,2.88732184]
[1694122919876,0.13732439,26221.0,26220.0,3.02244184]
[1694122920085,0.13732439,26221.0,26220.0,2.89272184]
[1694122920290,0.22887376,26221.0,26220.0,2.89062184]
[1694122920462,0.22887376,26221.0,26220.0,3.02280184]
[1694122920718,0.22887376,26221.0,26220.0,3.02724184]
[1694122920919,0.22887376,26221.0,26220.0,2.86700184]
[1694122921056,0.13732439,26221.0,26220.0,2.97820184]
[1694122921270,0.2288729,26221.0,26220.0,3.00416184]
[1694122921464,0.22887188,26221.0,26220.0,3.02952184]
[1694122921667,0.22887172,26221.0,26220.0,3.03072184]
[1694122921872,0.13732439,26221.0,26220.0,3.03084184]
[1694122922083,0.13732439,26221.0,26220.0,3.02760184]
[1694122922369,0.13732439,26221.0,26220.0,3.02364184]
[1694122922634,0.13732439,26221.0,26220.0,2.89284184]
[1694122922859,0.13732439,26221.0,26220.0,3.03408184]
[1694122923071,0.13732439,26221.0,26220.0,3.03336184]
[1694122923252,0.13732439,26221.0,26220.0,3.03228184]
[1694122923395,0.13732439,26221.0,26220.0,3.03084184]
[1694122923612,0.13732439,26221.0,26220.0,3.03060184]
[1694122923819,0.22886715,26221.0,26220.0,3.02496184]
[1694122924030,0.22886715,26221.0,26220.0,2.89332184]
[1694122924238,0.22886715,26221.0,26220.0,2.89326184]
[1694122924617,0.22886715,26221.0,26220.0,3.02364184]
[1694122924863,0.22886715,26221.0,26220.0,3.02412184]
[1694122925317,0.22886715,26221.0,26220.0,3.03024184]
[1694122925523,0.22886715,26221.0,26220.0,3.02964184]
[1694122925749,0.22886715,26221.0,26220.0,3.02844184]
[1694122925982,0.22886715,26221.0,26220.0,3.02796184]
[1694122926184,0.22886715,26221.0,26220.0,3.02784184]
[1694122926508,0.09154276,26221.0,26220.0,3.02808184]
[1694122926715,0.09154276,26221.0,26220.0,3.02832184]
[1694122926920,0.09154276,26221.0,26220.0,3.03204184]
[1694122927129,0.09154276,26221.0,26220.0,3.0631614]
[1694122927330,0.09154276,26221.0,26220.0,3.0625614]
[1694122927529,0.09154276,26221.0,26220.0,3.0618414]
[1694122927739,0.09154276,26221.0,26220.0,3.0647214]
[1694122927947,0.09154276,26221.0,26220.0,3.0636414]
[1694122928168,0.09154276,26221.0,26220.0,3.10212139]
[1694122928384,0.09154276,26221.0,26220.0,3.15528139]
[1694122928613,0.24896715,26222.0,26221.0,0.05797999]
[1694122928838,0.24896715,26222.0,26221.0,2.73477421]
[1694122929047,0.24896715,26222.0,26221.0,2.8520128]
[1694122929264,0.24896715,26222.0,26221.0,2.8520728]
[1694122929478,0.24896715,26222.0,26221.0,2.8545928]
[1694122929702,0.24896715,26222.0,26221.0,2.8536328]
[1694122929906,0.24896715,26222.0,26221.0,2.8532728]
[1694122930117,0.24896715,26222.0,26221.0,2.8536328]
[1694122930353,0.24896715,26222.0,26221.0,2.8534528]
[1694122930583,0.11164276,26222.0,26221.0,2.8534528]
[1694122930838,0.11164276,26222.0,26221.0,2.8538728]
[1694122931066,0.11164276,26222.0,26221.0,3.0465528]
[1694122931297,0.11164276,26222.0,26221.0,3.4268128]
[1694122931537,0.11164276,26222.0,26221.0,3.4502528]
[1694122931775,0.11164276,26222.0,26221.0,3.4659728]
[1694122931981,0.11164276,26222.0,26221.0,3.4710528]
[1694122932224,0.11164276,26222.0,26221.0,3.4935328]
[1694122932459,0.11164276,26222.0,26221.0,3.4947328]
[1694122932714,0.11164276,26222.0,26221.0,3.4928128]
[1694122932960,0.11164276,26222.0,26221.0,3.4929328]
[1694122933171,0.0201,26222.0,26221.0,3.4959328]
[1694122933427,0.0201,26222.0,26221.0,3.4749328]
[1694122933699,0.0201,26222.0,26221.0,3.4713328]
[1694122933951,0.0201,26222.0,26221.0,3.4613328]
[1694122934195,0.0201,26222.0,26221.0,3.4941328]
[1694122934401,0.0201,26222.0,26221.0,3.5208128]
[1694122934521,0.0201,26222.0,26221.0,3.5413328]
[1694122934765,0.0201,26222.0,26221.0,3.5201728]
[1694122935040,0.0201,26222.0,26221.0,3.5410928]
[1694122935283,0.0201,26222.0,26221.0,3.5413328]
[1694122935505,0.0201,26222.0,26221.0,3.5388128]
[1694122935744,0.0201,26222.0,26221.0,3.5403728]
[1694122935996,0.0201,26222.0,26221.0,3.5598128]
[1694122936205,0.0201,26222.0,26221.0,3.5593328]
[1694122936427,0.0201,26222.0,26221.0,3.5157328]
[1694122936657,0.0201,26222.0,26221.0,3.5409728]
[1694122936944,0.0201,26222.0,26221.0,3.5408528]
[1694122937173,0.0201,26222.0,26221.0,3.5413328]
[1694122937417,0.0201,26222.0,26221.0,3.5661728]
[1694122937646,0.0201,26222.0,26221.0,3.5034528]
[1694122937872,0.0201,26222.0,26221.0,3.5415328]
[1694122938093,0.0201,26222.0,26221.0,3.5289328]
[1694122938315,0.0201,26222.0,26221.0,3.5296528]
[1694122938540,0.0201,26222.0,26221.0,3.5408128]
[1694122938770,0.0201,26222.0,26221.0,3.5554928]
[1694122938993,0.0201,26222.0,26221.0,3.5655728]
[1694122939221,0.0201,26222.0,26221.0,3.5660528]
[1694122939441,0.0201,26222.0,26221.0,3.5262928]
[1694122939657,0.0201,26222.0,26221.0,3.5260528]
[1694122939876,0.0201,26222.0,26221.0,3.5510528]
[1694122940114,0.0201,26222.0,26221.0,3.5509328]
[1694122940296,0.0201,26222.0,26221.0,3.5264128]
[1694122940497,0.0201,26222.0,26221.0,3.5412128]
[1694122940757,0.0201,26222.0,26221.0,3.5420528]
[1694122940966,0.0201,26222.0,26221.0,3.5214528]
[1694122941199,0.0201,26222.0,26221.0,3.5209728]
[1694122941471,0.0201,26222.0,26221.0,3.5266928]
[1694122941680,0.0201,26222.0,26221.0,3.5301728]
[1694122941888,0.0201,26222.0,26221.0,3.5401328]
[1694122942092,0.0201,26222.0,26221.0,3.5400128]
[1694122942304,0.0201,26222.0,26221.0,3.5401328]
[1694122942520,0.0201,26222.0,26221.0,3.5402528]
[1694122942734,0.0201,26222.0,26221.0,3.5413328]
[1694122943338,0.0201,26222.0,26221.0,3.5349728]
[1694122943549,0.0201,26222.0,26221.0,3.5368928]
[1694122943783,0.0201,26222.0,26221.0,3.5574128]
[1694122944029,0.0201,26222.0,26221.0,3.5331328]
[1694122944244,0.0201,26222.0,26221.0,3.5084928]
[1694122944463,0.0201,26222.0,26221.0,3.5590928]
[1694122944678,0.0201,26222.0,26221.0,3.5384528]
[1694122944887,0.0201,26222.0,26221.0,3.5110528]
[1694122945100,0.0201,26222.0,26221.0,3.5111728]
[1694122945363,0.0201,26222.0,26221.0,3.5358128]
[1694122945571,0.0201,26222.0,26221.0,3.5132128]
[1694122945788,0.0201,26222.0,26221.0,3.5135728]
[1694122945997,0.0201,26222.0,26221.0,3.5383328]
[1694122946219,0.0201,26222.0,26221.0,3.5378528]
[1694122946434,0.0201,26222.0,26221.0,3.5179728]
[1694122946657,0.0201,26222.0,26221.0,3.5176128]
[1694122946869,0.0201,26222.0,26221.0,3.5166528]
[1694122947308,0.0201,26222.0,26221.0,3.1182328]
[1694122947530,0.0201,26222.0,26221.0,2.9192728]
[1694122947765,0.0201,26222.0,26221.0,2.9249128]
[1694122948014,0.0201,26222.0,26221.0,2.9234128]
[1694122948228,0.0201,26222.0,26221.0,2.9216728]
[1694122948435,0.0201,26222.0,26221.0,2.8993128]
[1694122948640,0.176,26222.0,26221.0,2.8803128]
[1694122948916,0.176,26222.0,26221.0,2.8804328]
[1694122949156,0.176,26222.0,26221.0,2.9032128]
[1694122949369,0.176,26222.0,26221.0,2.9060928]
[1694122949587,0.176,26222.0,26221.0,2.9113128]
[1694122949775,0.176,26222.0,26221.0,2.9324728]
[1694122949979,0.176,26222.0,26221.0,2.9327728]
[1694122950188,0.176,26222.0,26221.0,2.9328928]
[1694122950396,0.176,26222.0,26221.0,2.9071128]
[1694122950616,0.176,26222.0,26221.0,2.9324128]
[1694122950825,0.176,26222.0,26221.0,2.9324728]
[1694122951035,0.176,26222.0,26221.0,2.9350528]
[1694122951250,0.176,26222.0,26221.0,2.9352328]
[1694122951462,0.176,26222.0,26221.0,2.9321128]
[1694122951682,0.176,26222.0,26221.0,2.9282728]
[1694122951899,0.176,26222.0,26221.0,2.9297728]
[1694122952063,0.176,26222.0,26221.0,2.9304928]
[1694122952278,0.176,26222.0,26221.0,2.9303128]
[1694122952480,0.176,26222.0,26221.0,2.9311528]
[1694122952702,0.176,26222.0,26221.0,2.9332528]
[1694122952903,0.176,26222.0,26221.0,2.9357728]
[1694122953107,0.176,26222.0,26221.0,2.9358328]
[1694122953305,0.176,26222.0,26221.0,2.9390128]
[1694122953646,0.176,26222.0,26221.0,2.9418328]
[1694122953853,0.176,26222.0,26221.0,2.9424928]
[1694122954074,0.176,26222.0,26221.0,2.94304773]
[1694122954349,0.176,26222.0,26221.0,2.94388773]
[1694122954565,0.176,26222.0,26221.0,2.94340773]
[1694122954791,0.176,26222.0,26221.0,2.93710773]
[1694122955002,0.176,26222.0,26221.0,2.93776773]
[1694122955188,0.176,26222.0,26221.0,2.93650773]
[1694122955313,0.176,26222.0,26221.0,2.93746773]
[1694122955512,0.176,26222.0,26221.0,2.93770773]
[1694122955795,0.176,26222.0,26221.0,2.93752773]
[1694122956041,0.176,26222.0,26221.0,2.93764773]
[1694122956250,0.176,26222.0,26221.0,2.93794773]
[1694122956509,0.176,26222.0,26221.0,2.93848773]
[1694122956717,0.176,26222.0,26221.0,2.93938773]
[1694122956935,0.176,26222.0,26221.0,2.94064773]
[1694122957115,0.176,26222.0,26221.0,2.93949421]
[1694122957323,0.176,26222.0,26221.0,2.93961421]
[1694122957532,0.176,26222.0,26221.0,2.94213421]
[1694122957748,0.176,26222.0,26221.0,2.91923421]
[1694122957967,0.176,26222.0,26221.0,2.89405421]
[1694122958191,0.176,26222.0,26221.0,2.89087421]
[1694122958388,0.176,26222.0,26221.0,2.91485421]
[1694122958631,0.176,26222.0,26221.0,2.91467421]
[1694122958825,0.176,26222.0,26221.0,2.91521421]
[1694122959066,0.176,26222.0,26221.0,2.94189421]
[1694122959330,0.201,26222.0,26221.0,2.94453421]
[1694122959521,0.201,26222.0,26221.0,2.92103421]
[1694122959739,0.201,26222.0,26221.0,2.94639421]
[1694122960181,0.201,26222.0,26221.0,2.94645421]
[1694122960421,0.201,26222.0,26221.0,2.94693421]
[1694122960697,0.201,26222.0,26221.0,2.94651421]
[1694122960911,0.201,26222.0,26221.0,2.94171421]
[1694122961140,0.201,26222.0,26221.0,2.94177421]
[1694122961358,0.201,26222.0,26221.0,2.94183421]
[1694122961581,0.201,26222.0,26221.0,2.94207421]
[1694122961798,0.201,26222.0,26221.0,2.94087421]
[1694122962020,0.201,26222.0,26221.0,2.94195421]
[1694122962209,0.201,26222.0,26221.0,2.94201421]
[1694122962379,0.201,26222.0,26221.0,2.94195421]
[1694122962600,0.201,26222.0,26221.0,2.94015421]
[1694122962805,0.201,26222.0,26221.0,2.94123421]
[1694122963004,0.201,26222.0,26221.0,2.94165421]
[1694122963206,0.201,26222.0,26221.0,2.93991421]
[1694122963404,0.201,26222.0,26221.0,2.93985421]
[1694122963607,0.201,26222.0,26221.0,2.94003421]
[1694122963807,0.201,26222.0,26221.0,2.94411421]
[1694122964168,0.201,26222.0,26221.0,2.93355421]
[1694122964436,0.201,26222.0,26221.0,2.93499421]
[1694122964634,0.201,26222.0,26221.0,2.94705421]
[1694122964875,0.201,26222.0,26221.0,2.92761421]
[1694122965094,0.201,26222.0,26221.0,2.92671421]
[1694122965326,0.201,26222.0,26221.0,2.92587421]
[1694122965553,0.201,26222.0,26221.0,2.93049421]
[1694122965822,0.201,26222.0,26221.0,2.93055421]
[1694122966044,0.201,26222.0,26221.0,2.93157421]
[1694122966296,0.201,26222.0,26221.0,2.93319421]
[1694122966536,0.201,26222.0,26221.0,2.90669421]
[1694122966788,0.201,26222.0,26221.0,2.90711421]
[1694122967006,0.201,26222.0,26221.0,2.93151421]
[1694122967221,0.201,26222.0,26221.0,2.93301421]
[1694122967432,0.201,26222.0,26221.0,2.93217421]
[1694122967663,0.201,26222.0,26221.0,2.93325421]
[1694122967914,0.61642129,26222.0,26221.0,0.15992]
[1694122968163,0.29245911,26222.0,26221.0,0.08798]
[1694122968422,0.58506906,26222.0,26219.0,1.587]
[1694122968668,0.09151248,26220.0,26213.0,1.00904241]
[1694122968910,0.09151248,26220.0,26214.0,0.38855322]
[1694122968911,0.15542129,26219.0,26214.0,0.38855322]
[1694122969140,0.26,26218.0,26214.0,0.01999999]
[1694122969365,0.162,26217.0,26214.0,0.01999999]
[1694122969619,0.31742129,26217.0,26216.0,0.03798]
[1694122969839,0.25351248,26217.0,26216.0,0.03798]
[1694122970079,0.25351248,26217.0,26213.0,0.024]
[1694122970080,0.06,26215.0,26213.0,0.024]
[1694122970315,0.21542129,26215.0,26209.0,0.01999999]
[1694122970566,0.31742129,26214.0,26209.0,1.17164521]
[1694122970825,0.31742129,26214.0,26210.0,0.03798]
[1694122971313,0.06,26213.0,26205.0,0.0900058]
[1694122971578,0.06,26210.0,26203.0,0.03121622]
[1694122971844,0.08,26208.0,26204.0,0.03798]
[1694122972075,0.23542129,26207.0,26204.0,0.03798]
[1694122972319,0.23542129,26207.0,26203.0,0.03798]
[1694122972559,0.23542129,26207.0,26205.0,0.016]
[1694122972806,0.08,26207.0,26205.0,0.016]
[1694122973060,0.08,26207.0,26203.0,0.06298]
[1694122973296,0.23742129,26207.0,26204.0,0.025]
[1694122973533,0.1553,26206.0,26204.0,0.025]
[1694122974668,0.26,26205.0,26203.0,0.025]
[1694122974932,0.26,26205.0,26202.0,0.03798]
[1694122975389,0.26,26205.0,26202.0,0.801277]
[1694122975848,0.264,26205.0,26203.0,0.05]
[1694122976109,0.262,26205.0,26203.0,0.025]
[1694122976330,0.1553,26206.0,26202.0,0.826277]
[1694122976538,0.004,26205.0,26202.0,0.851277]
[1694122976748,0.002,26205.0,26202.0,0.826277]
[1694122977843,0.1553,26206.0,26202.0,0.801277]
[1694122978064,0.004,26205.0,26203.0,0.05]
[1694122978527,0.002,26205.0,26203.0,0.025]
[1694122978750,0.002,26205.0,26202.0,0.826269]
[1694122979020,0.004,26205.0,26202.0,0.851269]
[1694122979467,0.1553,26206.0,26202.0,1.564569]
[1694122979864,0.002,26205.0,26203.0,0.025]
[1694122980374,0.002,26205.0,26203.0,1.94009322]
[1694122980826,0.002,26205.0,26204.0,2.02507722]
[1694122981065,0.002,26205.0,26204.0,1.95301722]
[1694122981291,0.002,26205.0,26204.0,2.78171922]
[1694122981505,0.1553,26206.0,26204.0,2.78195922]
[1694122981691,0.1553,26206.0,26204.0,2.78219922]
[1694122981909,0.1553,26206.0,26204.0,2.80767922]
[1694122982159,0.1553,26206.0,26204.0,2.81487922]
[1694122982410,0.20143,26211.0,26204.0,2.81487922]
[1694122982411,0.1584,26209.0,26205.0,0.1203]
[1694122982633,0.1584,26209.0,26206.0,2.67808722]
[1694122982855,0.1584,26209.0,26206.0,2.75374722]
[1694122983080,0.1584,26209.0,26206.0,2.79088722]
[1694122983300,0.1584,26209.0,26206.0,2.79250722]
[1694122983513,0.1584,26209.0,26206.0,2.78818722]
[1694122983759,0.1584,26209.0,26208.0,0.01999999]
[1694122983976,0.1584,26209.0,26208.0,2.69792821]
[1694122984390,0.1584,26209.0,26208.0,2.79740821]
[1694122984603,0.1584,26209.0,26208.0,2.80016821]
[1694122984829,0.1655,26213.0,26210.0,2.289183]
[1694122985280,0.1655,26213.0,26211.0,0.38855322]
[1694122985500,0.1655,26213.0,26212.0,2.289027]
[1694122985959,0.1655,26213.0,26212.0,2.327007]
[1694122986708,0.1655,26213.0,26212.0,2.34700699]
[1694122987467,0.1655,26213.0,26212.0,2.80438021]
[1694122987668,0.1655,26213.0,26212.0,2.80906021]
[1694122987897,0.1655,26213.0,26212.0,2.83676021]
[1694122988129,0.1655,26213.0,26212.0,2.86116021]
[1694122988364,0.1655,26213.0,26212.0,2.86152021]
[1694122988607,0.1655,26213.0,26212.0,2.86176021]
[1694122988837,0.08,26218.0,26212.0,2.86188021]
[1694122989010,0.1509,26217.0,26213.0,0.38855322]
[1694122989274,0.1509,26217.0,26214.0,2.288835]
[1694122989475,0.1509,26217.0,26214.0,2.67738822]
[1694122990517,0.1509,26217.0,26215.0,0.38855322]
[1694122990965,0.1509,26217.0,26216.0,1.525784]
[1694122992276,0.1509,26217.0,26216.0,1.550784]
[1694122992484,0.1509,26217.0,26216.0,1.575784]
[1694122993994,0.1509,26217.0,26216.0,1.550784]
[1694122994198,0.1509,26217.0,26216.0,1.525784]
[1694122994410,0.1509,26217.0,26216.0,1.550784]
[1694122995082,0.1509,26217.0,26216.0,1.575784]
[1694122995521,0.1509,26217.0,26216.0,0.812892]
[1694122996160,0.1509,26217.0,26216.0,1.575784]
[1694122997901,0.1509,26217.0,26216.0,2.338676]
[1694122998800,0.1509,26217.0,26216.0,1.575784]
[1694123002196,0.1509,26217.0,26216.0,1.525784]
[1694123002407,0.1509,26217.0,26216.0,1.550784]
[1694123003592,0.1509,26217.0,26216.0,1.575784]
[1694123005254,0.0201,26222.0,26216.0,1.59578399]
[1694123005546,0.1625,26220.0,26216.0,1.59578399]
[1694123005789,0.1625,26220.0,26216.0,2.42509599]
[1694123005992,0.1625,26220.0,26216.0,2.40117599]
[1694123006215,0.1625,26220.0,26217.0,0.38855322]
[1694123006453,0.1625,26220.0,26218.0,2.30850199]
[1694123006715,0.1625,26220.0,26218.0,2.78525521]
[1694123006956,0.1625,26220.0,26219.0,0.072]
[1694123007191,0.1625,26220.0,26219.0,2.360355]
[1694123007411,0.1625,26220.0,26219.0,2.357835]
[1694123007639,0.1625,26220.0,26219.0,2.355435]
[1694123007861,0.1625,26220.0,26219.0,2.355255]
[1694123008084,0.1625,26220.0,26219.0,2.355195]
[1694123008288,0.1625,26220.0,26219.0,2.379955]
[1694123008592,0.1625,26220.0,26219.0,2.404715]
[1694123008809,0.1625,26220.0,26219.0,2.379535]
[1694123009002,0.1625,26220.0,26219.0,2.404655]
[1694123009317,0.1625,26220.0,26219.0,2.404535]
[1694123009522,0.1625,26220.0,26219.0,2.404355]
[1694123009729,0.1625,26220.0,26219.0,2.405555]
[1694123009943,0.1625,26220.0,26219.0,2.338415]
[1694123010419,0.1625,26220.0,26219.0,2.409695]
[1694123010654,0.1625,26220.0,26219.0,2.406275]
[1694123010877,0.1625,26220.0,26219.0,2.404835]
[1694123011099,0.1625,26220.0,26219.0,2.406455]
[1694123011337,0.1625,26220.0,26219.0,2.406515]
[1694123011561,0.0201,26222.0,26219.0,2.80340822]
[1694123011871,0.0201,26222.0,26220.0,0.40855321]
[1694123012067,0.0201,26222.0,26221.0,3.10896799]
[1694123012294,0.0201,26222.0,26221.0,3.61272121]
[1694123012522,0.0201,26222.0,26221.0,3.61194121]
[1694123012955,0.0201,26222.0,26221.0,3.57792121]
[1694123013205,0.0201,26222.0,26221.0,3.57446109]
[1694123013455,0.0201,26222.0,26221.0,3.57980109]
[1694123013677,0.0201,26222.0,26221.0,3.58052109]
[1694123013901,0.0201,26222.0,26221.0,3.58058109]
[1694123014149,0.0201,26222.0,26221.0,3.58250109]
[1694123014421,0.0201,26222.0,26221.0,3.58640109]
[1694123014641,0.0201,26222.0,26221.0,3.61410109]
[1694123014869,0.0201,26222.0,26221.0,3.63892109]
[1694123015098,0.0201,26222.0,26221.0,3.63910109]
[1694123015333,0.0201,26222.0,26221.0,3.63886109]
[1694123015769,0.0201,26222.0,26221.0,3.63634109]
[1694123016033,0.0201,26222.0,26221.0,3.62758109]
[1694123016250,0.0201,26222.0,26221.0,3.62602109]
[1694123016478,0.0201,26222.0,26221.0,3.62650109]
[1694123016703,0.0201,26222.0,26221.0,3.62614109]
[1694123017197,0.0201,26222.0,26221.0,3.62650109]
[1694123017404,0.0201,26222.0,26221.0,3.62662109]
[1694123017608,0.0201,26222.0,26221.0,3.62680109]
[1694123017803,0.0201,26222.0,26221.0,3.62812109]
[1694123018012,0.0201,26222.0,26221.0,3.62800109]
[1694123018258,0.0201,26222.0,26221.0,3.62914109]
[1694123018468,0.0201,26222.0,26221.0,3.62890109]
[1694123018671,0.0201,26222.0,26221.0,3.63016109]
[1694123018882,0.0201,26222.0,26221.0,3.63364109]
[1694123019090,0.0201,26222.0,26221.0,3.63358109]
[1694123019312,0.0201,26222.0,26221.0,3.62812109]
[1694123019528,0.0201,26222.0,26221.0,3.62776109]
[1694123019742,0.0201,26222.0,26221.0,3.62884109]
[1694123019961,0.0201,26222.0,26221.0,3.62848109]
[1694123020216,0.0201,26222.0,26221.0,3.63040109]
[1694123020463,0.0201,26222.0,26221.0,3.63064109]
[1694123020726,0.0201,26222.0,26221.0,3.63046109]
[1694123020935,0.0201,26222.0,26221.0,3.63034109]
[1694123021136,0.0201,26222.0,26221.0,3.60510109]
[1694123021361,0.0201,26222.0,26221.0,3.57998109]
[1694123021586,0.0201,26222.0,26221.0,3.60666109]
[1694123021816,0.0201,26222.0,26221.0,3.60576109]
[1694123022083,0.0201,26222.0,26221.0,3.60540109]
[1694123022275,0.0201,26222.0,26221.0,2.06730709]
[1694123022503,0.0201,26222.0,26221.0,0.47233309]
[1694123022828,0.0201,26222.0,26221.0,1.23508009]
[1694123023147,0.0201,26222.0,26221.0,2.76057409]
[1694123023389,0.0201,26222.0,26221.0,2.78557409]
[1694123025220,0.0201,26222.0,26221.0,2.7655741]
[1694123025444,0.0201,26222.0,26221.0,2.78557409]
[1694123026682,0.0201,26222.0,26221.0,2.86531409]
[1694123026885,0.0201,26222.0,26221.0,2.87035409]
[1694123027095,0.0201,26222.0,26221.0,2.87029409]
[1694123027314,0.0201,26222.0,26221.0,2.87059409]
[1694123027536,0.0201,26222.0,26221.0,2.87173409]
[1694123027780,0.0201,26222.0,26221.0,2.87227409]
[1694123028021,0.0201,26222.0,26221.0,2.87281409]
[1694123028279,0.0201,26222.0,26221.0,2.87581409]
[1694123028544,0.0201,26222.0,26221.0,2.87485409]
[1694123028800,0.0201,26222.0,26221.0,2.87509409]
[1694123029034,0.0201,26222.0,26221.0,2.87431409]
[1694123029272,0.0201,26222.0,26221.0,2.87419409]
[1694123029502,0.0201,26222.0,26221.0,2.87389409]
[1694123029754,0.0201,26222.0,26221.0,2.89339409]
[1694123029985,0.0201,26222.0,26221.0,2.89435409]
[1694123030224,0.0201,26222.0,26221.0,2.89339409]
[1694123030679,0.0201,26222.0,26221.0,2.88937409]
[1694123030946,0.0201,26222.0,26221.0,2.88991409]
[1694123031145,0.0201,26222.0,26221.0,2.89339409]
[1694123031268,0.0201,26222.0,26221.0,2.89255409]
[1694123031469,0.0201,26222.0,26221.0,2.89339409]
[1694123031701,0.0201,26222.0,26221.0,2.89195409]
[1694123031919,0.0201,26222.0,26221.0,2.89207409]
[1694123032135,0.0201,26222.0,26221.0,2.89195409]
[1694123032356,0.0201,26222.0,26221.0,2.88661409]
[1694123032581,0.0201,26222.0,26221.0,2.87827409]
[1694123032797,0.0201,26222.0,26221.0,2.87443409]
[1694123033006,0.0201,26222.0,26221.0,2.87425409]
[1694123033233,0.0201,26222.0,26221.0,2.87449409]
[1694123033457,0.0201,26222.0,26221.0,2.87317409]
[1694123033674,0.0201,26222.0,26221.0,2.86825409]
[1694123033895,0.0201,26222.0,26221.0,2.86963409]
[1694123034097,0.0201,26222.0,26221.0,2.86771409]
[1694123034329,0.0201,26222.0,26221.0,2.86585409]
[1694123034551,0.0201,26222.0,26221.0,2.86741409]
[1694123034771,0.0201,26222.0,26221.0,2.87443409]
[1694123034973,0.1761,26222.0,26221.0,1.26008009]
[1694123035411,0.1761,26222.0,26221.0,0.06999999]
[1694123035624,0.1761,26222.0,26221.0,0.03798]
[1694123035859,0.1761,26222.0,26221.0,2.326221]
[1694123036121,0.1761,26222.0,26221.0,1.95202722]
[1694123036355,0.1761,26222.0,26221.0,1.95194419]
[1694123036817,0.1801,26222.0,26221.0,1.99994419]
[1694123038845,0.1801,26222.0,26221.0,2.76269119]
[1694123039303,0.1801,26222.0,26221.0,0.08589697]
[1694123039541,0.1801,26222.0,26221.0,0.84864397]
[1694123039764,0.1801,26222.0,26221.0,1.61139097]
[1694123040006,0.1401,26222.0,26221.0,1.61139097]
[1694123040221,0.1801,26222.0,26221.0,1.61139097]
[1694123040874,0.1801,26222.0,26221.0,2.37413797]
[1694123042149,0.1801,26222.0,26221.0,1.61139097]
[1694123043182,0.1801,26222.0,26221.0,0.84864397]
[1694123043399,0.1801,26222.0,26221.0,0.08589697]
[1694123046362,2.468254,26222.0,26221.0,0.08589697]
[1694123049207,2.55962422,26222.0,26221.0,0.08589697]
[1694123050268,2.14474807,26222.0,26221.0,0.08589697]
[1694123050708,2.09928783,26222.0,26221.0,0.08589697]
[1694123051395,2.14474807,26222.0,26221.0,0.08589697]
[1694123052073,2.90746607,26222.0,26221.0,0.08589697]
[1694123052268,2.86204364,26222.0,26221.0,0.08589697]
[1694123053158,2.65125714,26222.0,26221.0,0.08589697]
[1694123053977,2.78850093,26222.0,26221.0,0.08589697]
[1694123056553,2.60549779,26222.0,26221.0,0.08589697]
[1694123056915,2.60549779,26222.0,26221.0,0.048]
[1694123060304,2.78850093,26222.0,26221.0,0.048]
[1694123060645,2.60549779,26222.0,26221.0,0.048]
[1694123060869,2.78850093,26222.0,26221.0,0.048]
[1694123061688,2.78848195,26222.0,26221.0,0.048]
[1694123062311,2.78847974,26222.0,26221.0,0.048]
[1694123063234,2.6054766,26222.0,26221.0,0.048]
[1694123066309,2.7884772,26222.0,26221.0,0.048]
[1694123067426,2.60547406,26222.0,26221.0,0.048]
[1694123067639,2.7884772,26222.0,26221.0,0.048]
[1694123068204,2.60547406,26222.0,26221.0,0.048]
[1694123069023,0.31732006,26222.0,26221.0,0.048]
[1694123069254,2.60547406,26222.0,26221.0,0.048]
[1694123069661,2.60347406,26222.0,26221.0,0.024]
[1694123069946,2.60347406,26222.0,26221.0,0.049]
[1694123071601,2.60347406,26222.0,26221.0,0.024]
[1694123072009,2.60347406,26222.0,26221.0,0.049]
[1694123073089,2.7864772,26222.0,26221.0,0.049]
[1694123076331,2.64925714,26222.0,26221.0,0.049]
[1694123077164,2.85235844,26222.0,26221.0,0.049]
[1694123077599,2.64925714,26222.0,26221.0,0.049]
[1694123077941,2.85235873,26222.0,26221.0,0.049]
[1694123078774,3.0807843,26222.0,26221.0,0.049]
[1694123079644,3.1007843,26222.0,26221.0,0.049]
[1694123079842,2.91778116,26222.0,26221.0,0.049]
[1694123080257,2.68935559,26222.0,26221.0,0.049]
[1694123081491,2.68935559,26222.0,26221.0,0.024]
[1694123081713,2.68935559,26222.0,26221.0,0.049]
[1694123082350,2.68735559,26222.0,26221.0,0.025]
[1694123082580,2.68735559,26222.0,26221.0,0.05]
[1694123082816,2.68735559,26222.0,26221.0,0.025]
[1694123083103,2.68735559,26222.0,26221.0,0.05]
[1694123083590,2.70735559,26222.0,26221.0,0.05]
[1694123084970,3.47007359,26222.0,26221.0,0.05]
[1694123085369,3.55007359,26222.0,26221.0,0.05]
[1694123087715,3.53007359,26222.0,26221.0,0.05]
[1694123089493,4.30823973,26222.0,26221.0,0.05]
[1694123090902,4.30823973,26222.0,26221.0,0.025]
[1694123091536,3.91862681,26222.0,26221.0,0.025]
[1694123091738,3.91862681,26222.0,26221.0,0.02]
[1694123091956,0.02,26218.0,26214.0,0.03798]
[1694123092155,0.15542129,26217.0,26214.0,0.03798]
[1694123092910,0.11153105,26218.0,26214.0,0.03798]
[1694123093557,0.02,26216.0,26214.0,0.03798]
[1694123093765,0.02,26215.0,26214.0,0.03798]
[1694123093973,0.02,26215.0,26214.0,0.06298]
[1694123094187,0.04,26215.0,26214.0,0.025]
[1694123094407,0.04,26215.0,26214.0,0.05]
[1694123094861,0.17729657,26215.0,26214.0,0.025]